fUST/lending_fUST_20240628
["ID","MTS","AMOUNT","RATE_DAILY","PERIOD"]
[330583202,1719588638410,-300.0,0.00014626,2]
[330583205,1719588638420,-300.0,0.00014626,2]
[330583208,1719588638430,-13562.40298386,0.00014627,2]
[330583220,1719588640750,-5346.06721685,0.00014627,2]
[330583255,1719588644349,-472.06963932,0.00014627,2]
[330583280,1719588646571,-5519.46015997,0.00014627,2]
[330583281,1719588646580,-336.710851,0.00014768,2]
[330583282,1719588646590,-2928.60425254,0.00014999,2]
[330583283,1719588646599,-1103.47973038,0.00015,2]
[330583284,1719588646607,-2416.91747958,0.00015,2]
[330583285,1719588646616,-420.0,0.00016013,2]
[330583286,1719588646625,-420.0,0.00016089,2]
[330583287,1719588646634,-1000.0,0.00016254,2]
[330583288,1719588646643,-42201.76063344,0.00016255,2]
[330583289,1719588646653,-6899.83562943,0.00016255,2]
[330583342,1719588979532,597.70730701,9.999e-05,2]
[330583353,1719589023054,216.810215,9.999e-05,2]
[330583354,1719589025201,226.4192049,9.999e-05,2]
[330583355,1719589025657,661.12832609,9.999e-05,2]
[330583356,1719589025924,457.45943987,9.999e-05,2]
[330583357,1719589026730,155.25403334,0.0001212,2]
[330583360,1719589035479,155.99601428,0.0001212,2]
[330583361,1719589036167,154.85288975,9.999e-05,2]
[330583363,1719589039821,402.64531294,9.999e-05,2]
[330583364,1719589044305,269.37897066,9.999e-05,2]
[330583365,1719589045080,516.9453028,9.999e-05,2]
[330583366,1719589047331,239.56788705,9.999e-05,2]
[330583367,1719589047759,179.54081427,9.999e-05,2]
[330583368,1719589048426,292.99777244,9.999e-05,2]
[330583369,1719589049745,154.85288975,9.999e-05,2]
[330583370,1719589053551,164.85188126,9.999e-05,2]
[330583372,1719589055637,373.78265909,9.999e-05,2]
[330583373,1719589057636,208.37564863,9.999e-05,2]
[330583374,1719589057683,723.95900882,9.999e-05,2]
[330583375,1719589057712,205.33975345,9.999e-05,2]
[330583376,1719589059170,2114.21178831,0.0001212,2]
[330583377,1719589064119,565.90871239,0.0001212,2]
[330583378,1719589064403,1487.60034683,0.0001212,2]
[330583379,1719589065954,9042.66440293,0.0001212,2]
[330583380,1719589066989,1284.76673272,9.999e-05,2]
[330583381,1719589070048,299.51409041,9.999e-05,2]
[330583382,1719589074859,180.50662285,9.999e-05,2]
[330583383,1719589078709,9599.57955052,0.0001212,2]
[330583385,1719589082218,195.47966853,9.999e-05,2]
[330583386,1719589083589,155.06962963,0.0001212,2]
[330583387,1719589084980,176.00680323,9.999e-05,2]
[330583388,1719589086697,159.35965211,9.999e-05,2]
[330583389,1719589088838,318.0694556,9.999e-05,2]
[330583390,1719589092870,154.85288975,9.999e-05,2]
[330583391,1719589093900,208.83961786,9.999e-05,2]
[330583392,1719589094176,309.597524,9.999e-05,2]
[330583393,1719589094354,284.72396714,9.999e-05,2]
[330583394,1719589094396,286.39912426,9.999e-05,2]
[330583395,1719589094614,274.36678504,9.999e-05,2]
[330583396,1719589097660,154.99225039,9.999e-05,2]
[330583397,1719589097690,309.67484142,9.999e-05,2]
[330583398,1719589102735,255.46258782,0.0001212,2]
[330583405,1719589117592,205.54211253,9.999e-05,2]
[330583406,1719589120608,222.44452854,9.999e-05,2]
[330583407,1719589126024,154.99225039,9.999e-05,2]
[330583408,1719589133852,1118.02971172,9.999e-05,2]
[330583409,1719589143657,154.85288975,0.0001212,2]
[330583411,1719589148854,154.99225039,0.0001212,2]
[330583412,1719589151464,3924.67012836,0.0001212,2]
[330583413,1719589199868,282.93616103,9.999e-05,2]
[330583414,1719589205994,207.71530322,9.999e-05,2]
[330583415,1719589254616,1913.36300711,0.0001212,2]
[330583416,1719589256157,154.98619808,9.999e-05,2]
[330583417,1719589261706,309.67484142,0.0001212,2]
[330583418,1719589282133,5000.0,0.00025999,120]
[330583419,1719589301655,5000.0,0.00025999,120]
[330583420,1719589323691,50000.0,0.00025999,120]
[330583421,1719589345505,5000.0,0.00025999,120]
[330583422,1719589370662,5000.0,0.00025999,120]
[330583423,1719589376802,-3000.0,0.00014572,2]
[330583424,1719589376826,-300.0,0.00014614,2]
[330583425,1719589376850,-300.0,0.00014614,2]
[330583426,1719589376877,-24900.0,0.00014615,2]
[330583427,1719589376901,-295.64655,0.00014672,2]
[330583428,1719589376925,-6974.47504509,0.00014998,2]
[330583429,1719589376951,-11118.98907716,0.00014998,2]
[330583430,1719589376976,-2123.95279144,0.00014999,2]
[330583431,1719589376999,-2040.81356743,0.00014999,2]
[330583432,1719589377023,-1569.01894779,0.00014999,2]
[330583433,1719589377048,-1103.47973038,0.00015,2]
[330583434,1719589377070,-947.4992689,0.00015,2]
[330583435,1719589377093,-519.16591691,0.00015,2]
[330583436,1719589379531,5000.0,0.00025999,120]
[330583437,1719589389642,5000.0,0.00025999,120]
[330583440,1719589491152,5000.0,0.00025999,120]
[330583441,1719589531314,665.65,0.00026,120]
[330583442,1719589615205,12153.7371,0.000241,59]
[330583499,1719589700413,168.66440107,0.0002,30]
[330583500,1719589774243,5000.0,0.00025999,120]
[330583541,1719589832166,-616.93215406,0.00015133,2]
[330583543,1719589832180,-233.51843284,0.00015133,2]
[330583545,1719589832191,-185.37469797,0.00015233,2]
[330583664,1719589840258,-114.62530203,0.00015233,2]
[330583665,1719589840268,-300.0,0.00015233,2]
[330583666,1719589840278,-24900.0,0.00015234,2]
[330583667,1719589840288,-490.28883306,0.00015995,2]
[330583668,1719589840297,-1438.60993814,0.00016144,2]
[330583772,1719589843293,-3845.06869541,0.00016144,2]
[330583773,1719589843302,-232.79354395,0.00016155,2]
[330583774,1719589843312,-2720.0,0.00016253,2]
[330583775,1719589843321,-1000.0,0.00016254,2]
[330583776,1719589843413,-19169.73512199,0.00016255,2]
[330583777,1719589843443,-17231.68409106,0.00016255,2]
[330583778,1719589843452,-42201.76063344,0.00016255,2]
[330583780,1719589843462,-276.15513312,0.000165,2]
[330583781,1719589843471,-420.0,0.00016667,2]
[330583782,1719589843480,-420.0,0.00016756,2]
[330583783,1719589843489,-205.8950775,0.00016856,2]
[330583784,1719589843498,-205.8950775,0.000169,2]
[330583785,1719589843508,-205.8950775,0.00016978,2]
[330583786,1719589843517,-205.8950775,0.00016986,2]
[330583787,1719589843526,-205.8950775,0.00017078,2]
[330583788,1719589843536,-205.8950775,0.00017256,2]
[330583789,1719589843545,-417.4806181,0.000173,2]
[330583790,1719589843554,-1000.0,0.00017624,2]
[330583791,1719589843563,-153.0,0.00017808,2]
[330583792,1719589843572,-153.0,0.00017808,2]
[330583793,1719589843581,-153.0,0.00017808,2]
[330583794,1719589843591,-153.0,0.00017808,2]
[330583795,1719589843600,-205.8950775,0.00017856,2]
[330583796,1719589843610,-190.79546937,0.00018,2]
[330583797,1719589843619,-826.10060043,0.00018,2]
[330583798,1719589843628,-154.98491803,0.00018,2]
[330583799,1719589843638,-587.0,0.00018237,2]
[330583800,1719589843647,-153.0,0.00018289,2]
[330583801,1719589843658,-153.0,0.00018289,2]
[330583802,1719589843667,-153.0,0.00018289,2]
[330583803,1719589843676,-587.0,0.00018431,2]
[330583804,1719589843686,-620.03042432,0.00018585,2]
[330583805,1719589843695,-155.0,0.0001861,2]
[330583806,1719589843704,-845.88,0.00018632,3]
[330583807,1719589843714,-151.0,0.00018642,2]
[330583808,1719589843722,-153.243,0.00018642,2]
[330583809,1719589843732,-772.0,0.00018642,2]
[330583810,1719589843741,-2000.0,0.000188,2]
[330583811,1719589843751,-5486.958777,0.000188,2]
[330583812,1719589843760,-150440.45876477,0.00018899,7]
[330583813,1719589843769,-109421.48710613,0.000189,7]
[330583814,1719589843781,-273.350159,0.000189,2]
[330583815,1719589843790,-151.0,0.000189,2]
[330583816,1719589843799,-151.0,0.000189,2]
[330583817,1719589843809,-151.0,0.000189,2]
[330583818,1719589843818,-151.0,0.000189,2]
[330583819,1719589843827,-151.0,0.000189,2]
[330583820,1719589843836,-151.0,0.000189,2]
[330583821,1719589843846,-151.0,0.000189,2]
[330583822,1719589843855,-153.078459,0.000189,2]
[330583823,1719589843864,-201.729537,0.000189,2]
[330583824,1719589843874,-201.729537,0.000189,2]
[330583825,1719589843883,-159.91932,0.000189,2]
[330583826,1719589843893,-151.0,0.000189,2]
[330583827,1719589843902,-151.0,0.000189,2]
[330583828,1719589843913,-221.976431,0.000189,2]
[330583829,1719589843923,-151.0,0.000189,2]
[330583830,1719589843932,-191.349793,0.000189,2]
[330583831,1719589843942,-191.349793,0.000189,2]
[330583832,1719589843952,-365410.837266,0.000189,2]
[330583833,1719589843961,-10000.0,0.000189,2]
[330583834,1719589843970,-1296.336796,0.000189,2]
[330583835,1719589843979,-1296.336796,0.000189,2]
[330583836,1719589843988,-204.488245,0.000189,2]
[330583837,1719589843997,-235.814017,0.000189,2]
[330583838,1719589844008,-235.814017,0.000189,2]
[330583839,1719589844019,-1856.763689,0.000189,2]
[330583840,1719589844028,-1856.763689,0.000189,2]
[330583841,1719589844037,-1000.0,0.00018994,2]
[330583842,1719589844049,-953.437188,0.00019111,2]
[330583843,1719589844059,-953.437188,0.00019111,2]
[330583844,1719589844067,-151.0,0.00019143,2]
[330583845,1719589844076,-151.0,0.00019143,2]
[330583846,1719589844088,-151.0,0.00019143,2]
[330583847,1719589844097,-159.276246,0.00019143,2]
[330583848,1719589844106,-151.0,0.00019143,2]
[330583849,1719589844116,-151.0,0.00019143,2]
[330583850,1719589844125,-151.0,0.00019143,2]
[330583851,1719589844134,-201.729537,0.00019143,2]
[330583852,1719589844143,-201.729537,0.00019143,2]
[330583853,1719589844152,-151.0,0.00019143,2]
[330583854,1719589844162,-151.0,0.00019143,2]
[330583855,1719589844171,-151.0,0.00019143,2]
[330583856,1719589844182,-191.349793,0.00019143,2]
[330583857,1719589844191,-191.349793,0.00019143,2]
[330583858,1719589844201,-151.0,0.00019143,2]
[330583859,1719589844210,-151.0,0.00019143,2]
[330583860,1719589844220,-151.0,0.00019143,2]
[330583861,1719589844229,-1058.882503,0.00019143,2]
[330583862,1719589844238,-1058.882503,0.00019143,2]
[330583863,1719589844247,-7760.644186,0.00019143,2]
[330583864,1719589844256,-7760.644186,0.00019143,2]
[330583865,1719589844266,-1099.968632,0.00019143,2]
[330583866,1719589844275,-151.0,0.00019143,2]
[330583867,1719589844285,-1099.968632,0.00019143,2]
[330583868,1719589844293,-151.0,0.00019143,2]
[330583869,1719589844303,-361.2,0.00019143,2]
[330583870,1719589844312,-361.2,0.00019143,2]
[330583871,1719589844321,-170.572973,0.00019143,2]
[330583872,1719589844331,-2375.539887,0.00019143,2]
[330583873,1719589844340,-2375.539887,0.00019143,2]
[330583874,1719589844350,-1063.974056,0.00019143,2]
[330583875,1719589844360,-1063.974056,0.00019143,2]
[330583876,1719589844370,-661.074698,0.00019143,2]
[330583877,1719589844380,-661.074698,0.00019143,2]
[330583878,1719589844389,-1110.609852,0.00019143,2]
[330583879,1719589844399,-305.620026,0.00019143,2]
[330583880,1719589844409,-1110.609852,0.00019143,2]
[330583881,1719589844418,-151.0,0.00019143,2]
[330583882,1719589844428,-305.620026,0.00019143,2]
[330583884,1719589844437,-2961.704385,0.00019143,2]
[330583885,1719589844446,-2961.704385,0.00019143,2]
[330583886,1719589844455,-151.0,0.00019143,2]
[330583887,1719589844464,-151.0,0.00019143,2]
[330583888,1719589844473,-1296.336796,0.00019143,2]
[330583889,1719589844482,-1296.336796,0.00019143,2]
[330583890,1719589844492,-235.814017,0.00019143,2]
[330583891,1719589844501,-235.814017,0.00019143,2]
[330583892,1719589844511,-1856.763689,0.00019143,2]
[330583893,1719589844520,-1856.763689,0.00019143,2]
[330583894,1719589844529,-274062.34891179,0.00019153,2]
[330583895,1719589844539,-151.0,0.00019153,2]
[330583896,1719589844548,-151.0,0.00019153,2]
[330583897,1719589844557,-151.0,0.00019153,2]
[330583898,1719589844566,-151.0,0.00019153,2]
[330583899,1719589844575,-151.0,0.00019153,2]
[330583901,1719589844585,-263.331674,0.00019153,2]
[330583902,1719589844594,-151.0,0.00019153,2]
[330583903,1719589844603,-151.0,0.00019153,2]
[330583904,1719589844693,-151.0,0.00019153,2]
[330583905,1719589844703,-265.196384,0.00019153,2]
[330583906,1719589844712,-151.0,0.00019153,2]
[330583907,1719589844721,-151.0,0.00019153,2]
[330583908,1719589844731,-953.437188,0.00019153,2]
[330583909,1719589844740,-953.437188,0.00019153,2]
[330583910,1719589844748,-953.437188,0.00019153,2]
[330583911,1719589844757,-953.437188,0.00019153,2]
[330583912,1719589844766,-201.729537,0.00019153,2]
[330583913,1719589844776,-201.729537,0.00019153,2]
[330583914,1719589844786,-201.729537,0.00019153,2]
[330583915,1719589844795,-201.729537,0.00019153,2]
[330583916,1719589844804,-151.0,0.00019153,2]
[330583917,1719589844813,-151.0,0.00019153,2]
[330583918,1719589844822,-258.689549,0.00019153,2]
[330583919,1719589844831,-151.0,0.00019153,2]
[330583920,1719589844840,-151.0,0.00019153,2]
[330583921,1719589844849,-191.349793,0.00019153,2]
[330583922,1719589844858,-191.349793,0.00019153,2]
[330583923,1719589844867,-191.349793,0.00019153,2]
[330583924,1719589844877,-191.349793,0.00019153,2]
[330583925,1719589844886,-151.0,0.00019153,2]
[330583926,1719589844895,-151.0,0.00019153,2]
[330583927,1719589844905,-151.0,0.00019153,2]
[330583928,1719589844915,-151.0,0.00019153,2]
[330583929,1719589844924,-151.0,0.00019153,2]
[330583930,1719589844933,-151.0,0.00019153,2]
[330583931,1719589844943,-1058.882503,0.00019153,2]
[330583932,1719589844953,-1058.882503,0.00019153,2]
[330583933,1719589844963,-1058.882503,0.00019153,2]
[330583934,1719589844972,-1058.882503,0.00019153,2]
[330583935,1719589844981,-7760.644186,0.00019153,2]
[330583936,1719589844990,-7760.644186,0.00019153,2]
[330583937,1719589845000,-7760.644186,0.00019153,2]
[330583938,1719589845012,-7760.644186,0.00019153,2]
[330583939,1719589845022,-1099.968632,0.00019153,2]
[330583940,1719589845031,-1099.968632,0.00019153,2]
[330583941,1719589845040,-151.0,0.00019153,2]
[330583942,1719589845049,-151.0,0.00019153,2]
[330583943,1719589845059,-1099.968632,0.00019153,2]
[330583944,1719589845068,-1099.968632,0.00019153,2]
[330583945,1719589845077,-151.0,0.00019153,2]
[330583946,1719589845087,-151.0,0.00019153,2]
[330583947,1719589845096,-361.2,0.00019153,2]
[330583948,1719589845105,-361.2,0.00019153,2]
[330583949,1719589845114,-361.2,0.00019153,2]
[330583950,1719589845124,-361.2,0.00019153,2]
[330583951,1719589845133,-2375.539887,0.00019153,2]
[330583952,1719589845142,-2375.539887,0.00019153,2]
[330583953,1719589845152,-2375.539887,0.00019153,2]
[330583954,1719589845162,-2375.539887,0.00019153,2]
[330583955,1719589845171,-1063.974056,0.00019153,2]
[330583956,1719589845182,-1063.974056,0.00019153,2]
[330583957,1719589845191,-1063.974056,0.00019153,2]
[330583958,1719589845200,-1063.974056,0.00019153,2]
[330583959,1719589845209,-661.074698,0.00019153,2]
[330583960,1719589845234,-661.074698,0.00019153,2]
[330583961,1719589845252,-661.074698,0.00019153,2]
[330583962,1719589845271,-661.074698,0.00019153,2]
[330583963,1719589845293,-1110.609852,0.00019153,2]
[330583964,1719589845312,-1110.609852,0.00019153,2]
[330583965,1719589845331,-305.620026,0.00019153,2]
[330583966,1719589845349,-305.620026,0.00019153,2]
[330583967,1719589845364,-1110.609852,0.00019153,2]
[330583968,1719589845383,-1110.609852,0.00019153,2]
[330583969,1719589845402,-305.620026,0.00019153,2]
[330583970,1719589845420,-305.620026,0.00019153,2]
[330583971,1719589845433,-151.0,0.00019153,2]
[330583972,1719589845456,-151.0,0.00019153,2]
[330583973,1719589845469,-2961.704385,0.00019153,2]
[330583974,1719589845485,-2961.704385,0.00019153,2]
[330583975,1719589845497,-2961.704385,0.00019153,2]
[330583976,1719589845512,-2961.704385,0.00019153,2]
[330583977,1719589845526,-151.0,0.00019153,2]
[330583978,1719589845542,-151.0,0.00019153,2]
[330583979,1719589845556,-151.0,0.00019153,2]
[330583980,1719589845571,-151.0,0.00019153,2]
[330583981,1719589845586,-1296.336796,0.00019153,2]
[330583982,1719589845600,-1296.336796,0.00019153,2]
[330583983,1719589845614,-1296.336796,0.00019153,2]
[330583984,1719589845629,-1296.336796,0.00019153,2]
[330583985,1719589845643,-235.814017,0.00019153,2]
[330583986,1719589845658,-235.814017,0.00019153,2]
[330583987,1719589845673,-235.814017,0.00019153,2]
[330583988,1719589845688,-235.814017,0.00019153,2]
[330583989,1719589845702,-1856.763689,0.00019153,2]
[330583992,1719589845716,-1856.763689,0.00019153,2]
[330583993,1719589845731,-1856.763689,0.00019153,2]
[330583994,1719589845745,-1856.763689,0.00019153,2]
[330583995,1719589845760,-500.0,0.00019178,2]
[330583996,1719589845774,-500.0,0.00019178,2]
[330583999,1719589845789,-500.0,0.00019178,2]
[330584002,1719589845803,-500.0,0.00019178,2]
[330584004,1719589845818,-500.0,0.00019178,2]
[330584007,1719589845833,-500.0,0.00019178,2]
[330584009,1719589845847,-500.0,0.00019178,2]
[330584011,1719589845862,-500.0,0.00019178,2]
[330584013,1719589845876,-500.0,0.00019178,2]
[330584015,1719589845890,-500.0,0.00019178,2]
[330584018,1719589845905,-500.0,0.00019178,2]
[330584021,1719589845921,-585.23823154,0.00019178,2]
[330584024,1719589845935,-500.0,0.00019178,2]
[330584027,1719589845950,-370.45096302,0.00019178,2]
[330584029,1719589845964,-500.0,0.00019178,2]
[330584032,1719589845978,-500.0,0.00019178,2]
[330584034,1719589845993,-500.0,0.00019178,2]
[330584037,1719589846008,-500.0,0.00019178,2]
[330584039,1719589846024,-408.16544391,0.00019178,2]
[330584042,1719589846038,-500.0,0.00019178,2]
[330584044,1719589846052,-500.0,0.00019178,2]
[330584046,1719589846066,-500.0,0.00019178,2]
[330584047,1719589846080,-500.0,0.00019178,2]
[330584048,1719589846095,-500.0,0.00019178,2]
[330584051,1719589846104,-500.0,0.00019178,2]
[330584053,1719589846114,-500.0,0.00019178,2]
[330584060,1719589846271,-500.0,0.00019178,2]
[330584061,1719589846282,-500.0,0.00019178,2]
[330584062,1719589846291,-500.0,0.00019178,2]
[330584063,1719589846300,-500.0,0.00019178,2]
[330584064,1719589846309,-500.0,0.00019178,2]
[330584065,1719589846318,-500.0,0.00019178,2]
[330584066,1719589846327,-500.0,0.00019178,2]
[330584067,1719589846337,-500.0,0.00019178,2]
[330584068,1719589846348,-500.0,0.00019178,2]
[330584069,1719589846358,-500.0,0.00019178,2]
[330584070,1719589846368,-500.0,0.00019178,2]
[330584071,1719589846378,-500.0,0.00019178,2]
[330584072,1719589846387,-500.0,0.00019178,2]
[330584073,1719589846397,-500.0,0.00019178,2]
[330584074,1719589846406,-500.0,0.00019178,2]
[330584075,1719589846417,-500.0,0.00019178,2]
[330584076,1719589846426,-500.0,0.00019178,2]
[330584077,1719589846435,-500.0,0.00019178,2]
[330584078,1719589846445,-500.0,0.00019178,2]
[330584079,1719589846454,-500.0,0.00019178,2]
[330584080,1719589846463,-500.0,0.00019178,2]
[330584081,1719589846472,-500.0,0.00019178,2]
[330584082,1719589846481,-500.0,0.00019178,2]
[330584083,1719589846491,-500.0,0.00019178,2]
[330584084,1719589846500,-500.0,0.00019178,2]
[330584085,1719589846509,-500.0,0.00019178,2]
[330584086,1719589846518,-500.0,0.00019178,2]
[330584087,1719589846528,-500.0,0.00019178,2]
[330584088,1719589846537,-500.0,0.00019178,2]
[330584089,1719589846547,-500.0,0.00019178,2]
[330584090,1719589846556,-500.0,0.00019178,2]
[330584091,1719589846566,-500.0,0.00019178,2]
[330584092,1719589846575,-500.0,0.00019178,2]
[330584093,1719589846584,-500.0,0.00019178,2]
[330584094,1719589846594,-500.0,0.00019178,2]
[330584095,1719589846603,-500.0,0.00019178,2]
[330584096,1719589846612,-500.0,0.00019178,2]
[330584097,1719589846621,-500.0,0.00019178,2]
[330584098,1719589846630,-500.0,0.00019178,2]
[330584099,1719589846639,-500.0,0.00019178,2]
[330584100,1719589846648,-500.0,0.00019178,2]
[330584101,1719589846657,-500.0,0.00019178,2]
[330584102,1719589846667,-500.0,0.00019178,2]
[330584103,1719589846677,-202.69897809,0.00019178,2]
[330584104,1719589846686,-500.0,0.00019178,2]
[330584105,1719589846695,-4021.58810132,0.00019178,2]
[330584106,1719589846705,-500.0,0.00019178,2]
[330584107,1719589846714,-4021.58810132,0.00019178,2]
[330584108,1719589846723,-4021.58810132,0.00019178,2]
[330584109,1719589846732,-4021.58810132,0.00019178,2]
[330584110,1719589846742,-4021.58810132,0.00019178,2]
[330584111,1719589846752,-4021.58810132,0.00019178,2]
[330584112,1719589846762,-4021.58810132,0.00019178,2]
[330584113,1719589846771,-4021.58810132,0.00019178,2]
[330584114,1719589846781,-4021.58810132,0.00019178,2]
[330584115,1719589846790,-4021.58810132,0.00019178,2]
[330584116,1719589846799,-4021.58810132,0.00019178,2]
[330584117,1719589846809,-4021.58810132,0.00019178,2]
[330584118,1719589846819,-4021.58810132,0.00019178,2]
[330584119,1719589846828,-4021.58810132,0.00019178,2]
[330584120,1719589846837,-4021.58810132,0.00019178,2]
[330584121,1719589846847,-4021.58810132,0.00019178,2]
[330584122,1719589846857,-4021.58810132,0.00019178,2]
[330584123,1719589846867,-500.0,0.00019178,2]
[330584124,1719589846877,-500.0,0.00019178,2]
[330584125,1719589846887,-500.0,0.00019178,2]
[330584126,1719589846898,-500.0,0.00019178,2]
[330584127,1719589846907,-163.61746959,0.00019178,2]
[330584128,1719589846929,-72.19751579,0.00019178,2]
[330584129,1719589846939,-500.0,0.00019178,2]
[330584130,1719589846949,-500.0,0.00019178,2]
[330584131,1719589846958,-500.0,0.00019178,2]
[330584132,1719589846968,-500.0,0.00019178,2]
[330584133,1719589846977,-500.0,0.00019178,2]
[330584134,1719589846987,-500.0,0.00019178,2]
[330584135,1719589846997,-500.0,0.00019178,2]
[330584136,1719589847010,-500.0,0.00019178,2]
[330584137,1719589847019,-500.0,0.00019178,2]
[330584138,1719589847029,-500.0,0.00019178,2]
[330584139,1719589847038,-500.0,0.00019178,2]
[330584140,1719589847047,-500.0,0.00019178,2]
[330584141,1719589847058,-500.0,0.00019178,2]
[330584142,1719589847067,-500.0,0.00019178,2]
[330584143,1719589847076,-500.0,0.00019178,2]
[330584144,1719589847087,-500.0,0.00019178,2]
[330584145,1719589847098,-500.0,0.00019178,2]
[330584146,1719589847107,-500.0,0.00019178,2]
[330584147,1719589847116,-500.0,0.00019178,2]
[330584148,1719589847125,-269.01337186,0.00019178,2]
[330584149,1719589847135,-530.33576805,0.00019178,2]
[330584150,1719589847144,-500.0,0.00019178,2]
[330584151,1719589847154,-500.0,0.00019178,2]
[330584152,1719589847163,-500.0,0.00019178,2]
[330584153,1719589847173,-500.0,0.00019178,2]
[330584154,1719589847181,-500.0,0.00019178,2]
[330584155,1719589847190,-500.0,0.00019178,2]
[330584156,1719589847199,-155.53456452,0.00019178,2]
[330584157,1719589847208,-500.0,0.00019178,2]
[330584158,1719589847218,-500.0,0.00019178,2]
[330584159,1719589847227,-500.0,0.00019178,2]
[330584160,1719589847236,-500.0,0.00019178,2]
[330584161,1719589847245,-500.0,0.00019178,2]
[330584162,1719589847254,-500.0,0.00019178,2]
[330584163,1719589847263,-500.0,0.00019178,2]
[330584164,1719589847273,-500.0,0.00019178,2]
[330584165,1719589847282,-500.0,0.00019178,2]
[330584166,1719589847291,-500.0,0.00019178,2]
[330584167,1719589847301,-500.0,0.00019178,2]
[330584168,1719589847310,-500.0,0.00019178,2]
[330584169,1719589847319,-500.0,0.00019178,2]
[330584170,1719589847328,-500.0,0.00019178,2]
[330584171,1719589847337,-500.0,0.00019178,2]
[330584172,1719589847348,-500.0,0.00019178,2]
[330584173,1719589847359,-500.0,0.00019178,2]
[330584174,1719589847369,-500.0,0.00019178,2]
[330584175,1719589847379,-500.0,0.00019178,2]
[330584176,1719589847390,-500.0,0.00019178,2]
[330584177,1719589847399,-500.0,0.00019178,2]
[330584178,1719589847408,-500.0,0.00019178,2]
[330584179,1719589847418,-500.0,0.00019178,2]
[330584180,1719589847427,-500.0,0.00019178,2]
[330584181,1719589847437,-500.0,0.00019178,2]
[330584182,1719589847446,-650.92121043,0.00019178,2]
[330584183,1719589847455,-500.0,0.00019178,2]
[330584184,1719589847464,-500.0,0.00019178,2]
[330584185,1719589847474,-500.0,0.00019178,2]
[330584186,1719589847483,-500.0,0.00019178,2]
[330584187,1719589847492,-500.0,0.00019178,2]
[330584188,1719589847501,-500.0,0.00019178,2]
[330584189,1719589847510,-500.0,0.00019178,2]
[330584190,1719589847520,-500.0,0.00019178,2]
[330584191,1719589847529,-500.0,0.00019178,2]
[330584192,1719589847540,-500.0,0.00019178,2]
[330584193,1719589847550,-500.0,0.00019178,2]
[330584194,1719589847559,-500.0,0.00019178,2]
[330584195,1719589847568,-500.0,0.00019178,2]
[330584196,1719589847577,-500.0,0.00019178,2]
[330584197,1719589847586,-500.0,0.00019178,2]
[330584198,1719589847595,-500.0,0.00019178,2]
[330584199,1719589847605,-500.0,0.00019178,2]
[330584200,1719589847614,-500.0,0.00019178,2]
[330584201,1719589847623,-500.0,0.00019178,2]
[330584202,1719589847632,-500.0,0.00019178,2]
[330584203,1719589847642,-500.0,0.00019178,2]
[330584204,1719589847652,-456.75589039,0.00019178,2]
[330584205,1719589847661,-500.0,0.00019178,2]
[330584206,1719589847671,-500.0,0.00019178,2]
[330584207,1719589847681,-500.0,0.00019178,2]
[330584208,1719589847690,-500.0,0.00019178,2]
[330584209,1719589847700,-500.0,0.00019178,2]
[330584210,1719589847709,-500.0,0.00019178,2]
[330584211,1719589847719,-500.0,0.00019178,2]
[330584212,1719589847729,-500.0,0.00019178,2]
[330584213,1719589847738,-457.62373663,0.00019178,2]